bitfinex/quotes_SOLUSD_20241113
["timestamp","ask_amount","ask_price","bid_price","bid_amount"]
[1731511121142,0.1,215.85,215.6,29.19137738]
[1731511121326,1.15889932,215.85,215.6,29.19137738]
[1731511121531,1.15889932,215.85,215.66,70.0]
[1731511121728,0.1,215.91,215.62,23.95319631]
[1731511121729,1.15855786,215.84,215.62,23.95319631]
[1731511121920,0.1,215.87,215.61,0.12549]
[1731511122118,1.15884245,215.86,215.7,70.0]
[1731511122445,7.20790148,215.93,215.68,23.32848021]
[1731511122446,1.15836838,215.92,215.68,23.32848021]
[1731511122634,1.15836838,215.92,215.69,0.12549]
[1731511122833,1.15836838,215.92,215.71,70.0]
[1731511123029,1.15836838,215.92,215.71,20.0]
[1731511123228,1.15836838,215.92,215.69,0.12549]
[1731511123439,0.1,215.9,215.69,0.12549]
[1731511123629,1.25859642,215.9,215.69,5.66533468]
[1731511123835,1.15859642,215.9,215.71,0.12549]
[1731511124241,1.15859642,215.9,215.7,20.0]
[1731511124439,1.15859642,215.9,215.68,12.0873]
[1731511124440,0.1,215.87,215.68,5.58193066]
[1731511124742,1.15878474,215.87,215.64,88.518726]
[1731511124945,1.15878474,215.87,215.69,70.0]
[1731511125131,1.15878474,215.87,215.65,0.12549]
[1731511125132,1.1584207,215.92,215.73,70.0]
[1731511125324,1.1584207,215.92,215.73,4.621]
[1731511125525,1.1584207,215.92,215.69,4.621]
[1731511125742,1.1584207,215.92,215.7,0.12549]
[1731511125945,1.1584207,215.92,215.69,24.621]
[1731511125946,0.1,215.91,215.69,20.0]
[1731511126123,1.15861664,215.9,215.67,90.0]
[1731511126318,1.15861664,215.9,215.71,70.0]
[1731511126646,1.15832901,215.94,215.72,20.0]
[1731511127023,1.15832901,215.94,215.69,24.621]
[1731511127333,1.15832901,215.94,215.7,0.12549]
[1731511127642,0.1,215.84,215.64,18.518726]
[1731511127893,32.8062,215.83,215.64,5.43211264]
[1731511128147,13.96122064,215.82,215.62,70.0]
[1731511128335,13.96122064,215.82,215.59,105.62182047]
[1731511128519,13.96122064,215.82,215.6,0.12549]
[1731511128728,13.96122064,215.82,215.59,123.09476546]
[1731511128926,14.06122064,215.82,215.59,17.47294499]
[1731511129242,13.96122064,215.82,215.68,0.12549]
[1731511129658,12.802,215.82,215.68,0.12549]
[1731511130023,13.96043863,215.82,215.68,0.12549]
[1731511130352,13.96043863,215.82,215.62,20.0]
[1731511130529,13.96043863,215.82,215.6,24.66835288]
[1731511130728,13.96043863,215.82,215.6,4.66835288]
[1731511131038,13.96043863,215.82,215.59,31.39552047]
[1731511131237,14.06043863,215.82,215.59,7.861]
[1731511131432,13.96043863,215.82,215.59,7.861]
[1731511131635,13.96043863,215.82,215.6,0.12549]
[1731511132034,0.1,215.8,215.59,3.24]
[1731511132246,0.1,215.77,215.59,3.24]
[1731511132562,1.15936617,215.77,215.59,3.24]
[1731511132739,17.4356,215.82,215.62,70.0]
[1731511132740,1.15925982,215.81,215.62,70.0]
[1731511133048,37.05228514,215.77,215.59,3.24]
[1731511133251,37.05228514,215.73,215.59,3.24]
[1731511133457,0.1,215.67,215.59,3.24]
[1731511133623,0.1,215.67,215.41,78.91321352]
[1731511133624,1.15982707,215.67,215.42,70.0]
[1731511134053,1.15982707,215.67,215.45,70.0]
[1731511134263,1.15982707,215.67,215.5,70.0]
[1731511134555,1.15982707,215.67,215.47,70.0]
[1731511134737,1.15982707,215.67,215.48,0.12549]
[1731511134945,1.15982707,215.67,215.47,70.0]
[1731511135240,1.15982707,215.67,215.51,0.12549]
[1731511135445,1.25982707,215.67,215.51,0.12549]
[1731511135644,1.15982707,215.67,215.41,84.56544218]
[1731511135848,38.31211221,215.67,215.41,84.56544218]
[1731511136056,38.21211221,215.67,215.43,8.5872]
[1731511136224,1.15982707,215.67,215.44,70.12549]
[1731511136425,1.15982707,215.67,215.43,8.5872]
[1731511136645,38.21211221,215.67,215.43,8.5872]
[1731511137032,38.21211221,215.67,215.44,0.12549]
[1731511137435,1.15982707,215.67,215.44,70.12549]
[1731511137650,44.39543818,215.66,215.44,0.12549]
[1731511137848,44.39543818,215.66,215.43,13.25555288]
[1731511137849,37.05228514,215.64,215.43,8.5872]
[1731511138035,0.1,215.61,215.43,8.5872]
[1731511138363,0.1,215.59,215.43,8.5872]
[1731511138564,37.05228514,215.56,215.36,4.66835288]
[1731511138850,37.05228514,215.49,215.34,5.59239232]
[1731511139052,1.16069734,215.48,215.24,70.0]
[1731511139249,1.16069734,215.48,215.32,6.12659897]
[1731511139453,1.16069734,215.48,215.32,0.451069]
[1731511140031,0.1,215.55,215.32,0.451069]
[1731511140032,1.16080318,215.47,215.37,1.1607]
[1731511140249,1.1605908,215.54,215.38,0.12549]
[1731511140936,1.1605908,215.54,215.39,20.0]
[1731511141137,1.16050961,215.53,215.4,0.12549]
[1731511141331,1.16009808,215.57,215.4,0.12549]
[1731511141841,38.21238322,215.57,215.38,5.5386848]
[1731511142043,38.21238322,215.57,215.37,1.1607]
[1731511142044,37.05228514,215.53,215.37,1.1607]
[1731511142267,1.16046964,215.52,215.38,0.12549]
[1731511142561,0.1,215.54,215.38,0.12549]
[1731511142742,1.16072356,215.53,215.38,0.12549]
[1731511143374,1.16041953,215.57,215.38,0.12549]
[1731511143859,1.16041953,215.57,215.38,43.902374]
[1731511144160,1.16041953,215.57,215.42,23.776884]
[1731511144462,1.16041953,215.57,215.45,20.12549]
[1731511144646,1.16041953,215.57,215.48,23.776884]
[1731511144852,13.2416,215.67,215.52,23.776884]
[1731511145060,13.2416,215.67,215.55,20.0]
[1731511145061,1.15959016,215.65,215.55,20.0]
[1731511145356,13.2416,215.67,215.62,23.776884]
[1731511145558,13.2416,215.67,215.6,23.776884]
[1731511145559,1.15935364,215.66,215.6,23.776884]
[1731511145763,1.15935364,215.66,215.45,43.776884]
[1731511146057,1.15935364,215.66,215.56,43.902374]
[1731511146248,1.15935364,215.66,215.58,23.776884]
[1731511146762,1.15935364,215.66,215.59,0.12549]
[1731511147256,13.2416,215.67,215.6,23.776884]
[1731511147466,13.2416,215.67,215.62,23.776884]
[1731511147657,1.15925527,215.66,215.58,23.776884]
[1731511148037,1.15925527,215.66,215.59,0.12549]
[1731511148242,1.15925527,215.66,215.61,23.776884]
[1731511148541,1.15925527,215.66,215.6,3.9424]
[1731511150342,1.15925527,215.66,215.45,23.776884]
[1731511150671,1.15925527,215.66,215.46,5.00750843]
[1731511151042,1.15925527,215.66,215.45,0.12549]
[1731511151471,1.15925527,215.66,215.45,70.12549]
[1731511151648,1.15925527,215.66,215.49,20.12549]
[1731511151847,13.2416,215.67,215.49,20.12549]
[1731511151848,13.2416,215.67,215.55,23.776884]
[1731511152041,13.2416,215.67,215.58,20.0]
[1731511152267,1.15926843,215.76,215.58,20.0]
[1731511152268,1.15926843,215.76,215.61,23.776884]
[1731511152448,1.15926843,215.76,215.64,20.0]
[1731511152767,1.15926843,215.76,215.59,9.07559843]
[1731511152969,1.15926843,215.76,215.62,20.0]
[1731511153145,1.15926843,215.76,215.65,23.776884]
[1731511153347,1.15926843,215.76,215.75,36.79998491]
[1731511153558,0.1,215.97,215.76,43.776884]
[1731511153879,12.9135,215.98,215.76,43.776884]
[1731511153880,0.45949085,215.96,215.92,36.79998491]
[1731511154251,0.45949085,215.96,215.88,36.79998491]
[1731511154465,0.45949085,215.96,215.85,2.3163]
[1731511154466,0.45949085,215.96,215.92,36.79998491]
[1731511155360,0.45949085,215.96,215.94,36.79998491]
[1731511155566,0.45949085,215.97,215.94,36.79998491]
[1731511156459,0.45949085,215.97,215.96,36.79998491]
[1731511157047,0.45949085,216.0,215.96,36.79998491]
[1731511157243,20.15980722,216.07,215.99,36.79998491]
[1731511157244,0.45949085,216.06,215.99,36.79998491]
[1731511157468,0.45949085,216.06,216.01,36.79998491]
[1731511157900,0.45949085,216.06,216.03,36.79998491]
[1731511158071,0.45949085,216.06,215.93,36.79998491]
[1731511158072,0.91055985,216.08,216.05,36.79998491]
[1731511158248,0.451069,216.08,216.07,36.79998491]
[1731511158446,0.451069,216.08,216.07,37.26278491]
[1731511158678,0.451069,216.08,216.07,0.4628]
[1731511159379,0.451069,216.08,216.07,24.365174]
[1731511159744,0.451069,216.08,216.07,24.239684]
[1731511160046,0.451069,216.08,216.07,44.365174]
[1731511160750,6.9e-05,216.08,216.07,44.365174]
[1731511160951,6.9e-05,216.08,216.07,81.16515891]
[1731511161563,6.9e-05,216.08,216.07,44.365174]
[1731511161769,6.9e-05,216.08,216.07,24.365174]
[1731511162077,6.9e-05,216.08,216.07,24.239684]
[1731511162376,6.9e-05,216.08,216.07,0.4628]
[1731511162672,6.9e-05,216.08,216.07,37.26278491]
[1731511164071,6.9e-05,216.08,216.07,36.79998491]
[1731511164773,6.9e-05,216.08,216.03,36.79998491]
[1731511164982,0.1,216.06,215.99,36.79998491]
[1731511165149,0.45949085,216.06,216.05,36.79998491]
[1731511165349,0.45949085,216.06,215.91,5.64306264]
[1731511165563,6.9e-05,216.08,215.98,0.12549]
[1731511165770,6.9e-05,216.08,216.0,0.12549]
[1731511166074,6.9e-05,216.08,215.91,5.64306264]
[1731511166255,0.45955985,216.08,215.88,11.16434732]
[1731511166454,0.45955985,216.08,215.89,0.12549]
[1731511166760,0.45955985,216.08,215.99,36.79998491]
[1731511166966,0.45955985,216.08,216.03,36.79998491]
[1731511167176,6.9e-05,216.08,216.03,36.79998491]
[1731511167350,0.1,216.07,216.01,36.79998491]
[1731511167550,0.45949085,216.06,216.05,36.79998491]
[1731511167771,6.9e-05,216.08,216.03,36.79998491]
[1731511167978,0.45955985,216.08,216.01,36.79998491]
[1731511168576,0.1,216.07,216.02,0.4629]
[1731511168784,0.1,216.07,215.89,4.91094732]
[1731511168785,0.1,215.97,215.7,70.0]
[1731511169081,36.79998491,215.95,215.86,36.79998491]
[1731511169384,0.1,216.01,215.86,36.79998491]
[1731511169385,0.45949085,215.94,215.86,36.79998491]
[1731511169956,0.1,215.91,215.82,36.79998491]
[1731511170156,0.45949085,215.91,215.88,36.79998491]
[1731511170471,0.45949085,215.98,215.91,1.6209]
[1731511170663,0.55949085,215.98,215.91,1.6209]
[1731511170860,36.79998491,215.97,215.91,1.1578]
[1731511171049,0.1,215.94,215.87,0.4632]
[1731511171255,0.45949085,215.93,215.87,0.4632]
[1731511171450,0.45949085,215.96,215.87,0.4632]
[1731511171872,7.23474375,215.94,215.87,0.4632]
[1731511172172,0.45949085,215.93,215.87,0.4632]
[1731511172474,0.45949085,215.93,215.83,0.4633]
[1731511172475,36.89998491,215.91,215.83,0.4633]
[1731511172681,0.45949085,215.9,215.83,0.4633]
[1731511172984,0.45949085,215.9,215.84,36.79998491]
[1731511173156,0.45949085,215.93,215.88,36.79998491]
[1731511173355,0.45949085,215.93,215.86,36.79998491]
[1731511173572,7.7946799,215.93,215.84,36.79998491]
[1731511173960,7.6946799,215.93,215.84,36.79998491]
[1731511174355,7.7946799,215.93,215.85,3.2429]
[1731511174778,44.59466481,215.93,215.85,3.2429]
[1731511174982,44.49466481,215.93,215.85,3.2429]
[1731511175366,0.1,215.9,215.85,3.2429]
[1731511175577,36.79998491,215.91,215.75,4.6348]
[1731511175578,36.89998491,215.87,215.8,2.3169]
[1731511175767,0.45949085,215.86,215.8,2.3169]
[1731511176155,0.45949085,215.86,215.8,3.2436]
[1731511176665,0.45949085,215.86,215.8,2.3169]
[1731511177071,0.45949085,215.88,215.8,2.3169]
[1731511177253,0.45949085,215.88,215.81,36.79998491]
[1731511177459,0.45949085,215.88,215.8,2.3169]
[1731511177892,0.45949085,215.88,215.79,34.48488491]
[1731511178066,37.25947576,215.88,215.78,37.72678491]
[1731511178488,37.25947576,215.88,215.78,36.79998491]
[1731511178780,0.45949085,215.88,215.82,36.79998491]
[1731511178972,7.23518905,215.93,215.82,36.79998491]
[1731511178973,0.45949085,215.9,215.86,36.79998491]
[1731511179159,0.45949085,215.9,215.89,36.79998491]
[1731511179361,7.23464221,215.96,215.89,36.79998491]
[1731511179561,0.45949085,215.95,215.89,36.79998491]
[1731511179975,36.89998491,215.92,215.82,36.79998491]
[1731511180285,0.1,215.89,215.82,36.79998491]
[1731511180492,0.45949085,215.89,215.83,3.2432]
[1731511180666,0.45949085,215.89,215.84,36.79998491]
[1731511180859,0.45949085,215.89,215.85,36.79998491]
[1731511181085,0.45949085,215.89,215.83,44.67638491]
[1731511181385,0.45949085,215.88,215.83,44.67638491]
[1731511181574,0.1,215.89,215.81,36.79998491]
[1731511181776,36.89998491,215.85,215.75,36.79998491]
[1731511181969,36.89998491,215.81,215.71,36.79998491]
[1731511182166,0.45949085,215.8,215.79,36.79998491]
[1731511182365,36.89998491,215.91,215.72,5.18799177]
[1731511182585,0.45949085,215.9,215.82,36.79998491]
[1731511182768,0.45949085,215.9,215.73,3.2447]
[1731511182769,0.45949085,215.9,215.86,36.79998491]
[1731511183080,0.45949085,215.93,215.86,36.79998491]
[1731511183284,0.45949085,215.93,215.73,7.8801]
[1731511183285,0.45949085,215.93,215.88,36.79998491]
[1731511183473,0.45949085,215.93,215.82,36.79998491]
[1731511183474,0.45949085,215.93,215.92,36.79998491]
[1731511183677,0.45949085,215.95,215.92,36.79998491]
[1731511184188,0.45949085,215.95,215.9,36.79998491]
[1731511184378,0.55949085,215.95,215.86,36.79998491]
[1731511184579,0.55949085,215.95,215.87,3.2426]
[1731511184767,5.19019085,215.95,215.87,3.2426]
[1731511185087,5.19019085,215.95,215.82,2.3167]
[1731511185088,0.1,215.87,215.82,2.3167]
[1731511185271,0.45949085,215.86,215.82,3.2433]
[1731511185786,0.1,215.88,215.82,3.2433]
[1731511186081,0.45949085,215.87,215.82,3.2433]
[1731511186478,0.1,215.86,215.82,3.2433]
[1731511186663,0.1,215.84,215.82,2.3167]
[1731511186983,0.1,215.84,215.77,2.3172]
[1731511186984,0.1,215.81,215.77,2.3172]
[1731511187187,0.1,215.81,215.73,4.6354]
[1731511187188,0.45949085,215.8,215.74,0.927]
[1731511187485,0.45949085,215.8,215.74,2.3176]
[1731511187686,0.45949085,215.8,215.74,3.2446]
[1731511187867,36.89998491,215.78,215.69,2.318]
[1731511188066,36.89998491,215.78,215.67,37.72728491]
[1731511188067,0.1,215.74,215.67,37.72728491]
[1731511188283,0.1,215.74,215.49,69.80188491]
[1731511188284,0.45949085,215.73,215.65,36.79998491]
[1731511188469,0.45949085,215.73,215.67,36.79998491]
[1731511188667,0.45949085,215.73,215.68,0.9272]
[1731511188891,0.1,215.72,215.68,3.2454]
[1731511189086,0.55949085,215.71,215.65,36.79998491]
[1731511189384,0.45949085,215.71,215.65,40.04588491]
[1731511190090,0.45949085,215.73,215.67,36.79998491]
[1731511190281,0.45949085,215.73,215.69,36.79998491]
[1731511190783,0.45949085,215.73,215.65,41.43708491]
[1731511190990,0.1,215.71,215.66,0.9273]
[1731511191162,0.1,215.71,215.65,41.43708491]
[1731511191163,0.1,215.7,215.63,36.79998491]
[1731511191373,0.45949085,215.69,215.65,36.79998491]
[1731511191666,0.45949085,215.72,215.65,36.79998491]
[1731511192275,0.45949085,215.72,215.67,36.79998491]
[1731511192784,0.45949085,215.72,215.68,3.2454]
[1731511192984,0.1,215.69,215.66,0.9273]
[1731511193194,0.1,215.71,215.66,0.9273]
[1731511193398,0.45949085,215.7,215.66,3.2457]
[1731511194272,7.24306567,215.7,215.66,3.2457]
[1731511194486,0.45949085,215.69,215.67,36.79998491]
[1731511194677,0.45949085,215.69,215.66,3.2457]
[1731511194874,60.70235891,215.68,215.61,2.3189]
[1731511195083,36.79998491,215.62,215.53,36.79998491]
[1731511195281,36.79998491,215.56,215.47,36.79998491]
[1731511195499,0.45949085,215.55,215.47,36.79998491]
[1731511195706,0.1,215.52,215.32,0.451069]
[1731511195991,36.79998491,215.45,215.36,36.79998491]
[1731511196169,36.79998491,215.45,215.33,3.2508]
[1731511196170,0.45949085,215.44,215.35,36.79998491]
[1731511196374,0.45949085,215.44,215.39,36.79998491]
[1731511196575,0.45949085,215.44,215.33,7.8948]
[1731511196576,0.45949085,215.48,215.42,36.79998491]
[1731511196786,0.45949085,215.48,215.42,37.72828491]
[1731511197095,0.45949085,215.48,215.44,36.79998491]
[1731511197499,0.45949085,215.49,215.46,36.79998491]
[1731511197873,0.45949085,215.49,215.44,36.79998491]
[1731511198793,20.0,215.47,215.29,4.6447]
[1731511198973,0.1,215.45,215.38,36.79998491]
[1731511199174,0.1,215.45,215.36,2.3216]
[1731511199175,0.1,215.43,215.36,39.12158491]
[1731511199386,0.1,215.39,215.32,38.17985391]
[1731511199681,20.1,215.39,215.32,0.451069]
[1731511199881,43.776884,215.41,215.34,36.79998491]
[1731511199882,0.45949085,215.38,215.34,36.79998491]
[1731511200083,0.45949085,215.38,215.32,40.50195391]
[1731511200290,0.45949085,215.38,215.36,36.79998491]
[1731511200494,0.45949085,215.45,215.36,36.79998491]
[1731511200694,0.45949085,215.45,215.37,36.79998491]
[1731511201406,0.1,215.44,215.37,36.79998491]
[1731511201577,0.45949085,215.43,215.36,3.2502]
[1731511201779,0.45949085,215.43,215.36,2.3216]
[1731511202086,0.55949085,215.43,215.36,2.3216]
[1731511202284,0.55949085,215.43,215.35,36.79998491]
[1731511202285,0.65949085,215.43,215.35,36.79998491]
[1731511202474,0.45949085,215.43,215.33,3.2507]
[1731511202674,0.45949085,215.49,215.43,3.2492]
[1731511202999,0.45949085,215.53,215.48,36.79998491]
[1731511203202,0.45949085,215.59,215.48,36.79998491]
[1731511203391,0.45949085,215.66,215.58,36.79998491]
[1731511203696,0.45949085,215.66,215.48,36.79998491]
[1731511203697,0.45949085,215.66,215.65,36.79998491]
[1731511203887,0.45949085,215.69,215.65,36.79998491]
[1731511204085,0.45949085,215.81,215.65,4.4623751]
[1731511204276,7.242665,215.83,215.63,0.1]
[1731511204481,0.45949085,215.82,215.66,20.0]
[1731511204795,0.45949085,215.82,215.73,37.72698491]
[1731511205774,0.45949085,215.89,215.73,37.72698491]
[1731511205977,7.68342537,215.89,215.75,0.1]
[1731511206185,7.68342537,215.89,215.88,36.79998491]
[1731511206400,0.45949085,215.89,215.88,36.79998491]
[1731511206581,7.22069264,215.94,215.88,36.79998491]
[1731511206782,0.45949085,215.93,215.88,36.79998491]
[1731511207096,0.45949085,215.93,215.92,36.79998491]
[1731511207297,18.609935,216.03,215.92,36.79998491]
[1731511207298,0.55949085,216.01,215.92,36.79998491]
[1731511207484,7.22535286,216.0,215.94,36.79998491]
[1731511207675,0.45949085,215.99,215.94,36.79998491]
[1731511207904,0.45949085,215.99,215.88,2.3161]
[1731511208093,0.45949085,215.99,215.9,36.79998491]
[1731511208491,0.45949085,215.99,215.92,36.79998491]
[1731511208800,0.1,215.98,215.9,36.79998491]
[1731511208978,0.45949085,215.97,215.9,36.79998491]
[1731511209302,0.45949085,215.97,215.94,36.79998491]
[1731511209482,0.45949085,215.97,215.88,2.3161]
[1731511209483,0.45949085,216.0,215.96,36.79998491]
[1731511209805,0.1,216.07,215.99,36.79998491]
[1731511209806,18.96766585,216.07,215.99,36.79998491]
[1731511209986,7.22611737,216.05,215.89,0.2]
[1731511210194,0.45949085,216.04,215.88,22.3161]
[1731511210393,0.45949085,216.04,215.99,36.79998491]
[1731511210689,0.45949085,216.04,215.93,36.79998491]
[1731511210690,0.45949085,216.07,216.03,36.79998491]
[1731511210895,0.45949085,216.07,216.04,3.24]
[1731511211076,0.45949085,216.07,216.04,2.3143]
[1731511211275,0.45949085,216.07,215.99,0.9259]
[1731511211481,0.45949085,216.07,216.03,36.79998491]
[1731511212095,0.45949085,216.07,216.01,36.79998491]
[1731511212297,37.25947576,216.07,215.99,2.3149]
[1731511212597,0.45949085,216.07,216.03,36.79998491]
[1731511213004,0.45949085,216.07,216.04,0.9257]
[1731511213208,0.45949085,216.07,216.04,2.3143]
[1731511213703,0.1,216.06,215.99,36.79998491]
[1731511213899,0.45949085,216.05,215.99,36.79998491]
[1731511214685,0.12549,216.02,215.94,0.9261]
[1731511214886,0.45949085,216.01,215.95,36.79998491]
[1731511215089,0.45949085,216.01,215.97,36.79998491]
[1731511215388,24.23637485,216.05,215.95,36.79998491]
[1731511215587,36.79998491,216.04,215.95,36.79998491]
[1731511215795,36.92547491,216.02,215.94,0.9261]
[1731511216098,0.1,216.0,215.94,0.9261]
[1731511216303,24.23637485,215.99,215.91,36.79998491]
[1731511216504,36.89998491,215.95,215.76,12.5728]
[1731511216814,23.902374,215.98,215.81,36.79998491]
[1731511216815,23.776884,215.9,215.81,36.79998491]
[1731511217105,0.45949085,215.89,215.85,36.79998491]
[1731511217311,23.776884,215.9,215.82,1.6216]
[1731511217604,36.79998491,215.85,215.66,0.4636]
[1731511217928,0.12549,215.87,215.76,36.79998491]
[1731511217929,0.45949085,215.84,215.76,36.79998491]
[1731511218107,36.89998491,215.81,215.72,36.79998491]
[1731511218401,0.1,215.82,215.69,1.159]
[1731511218402,36.79998491,215.75,215.69,1.159]
[1731511218613,36.79998491,215.75,215.64,36.79998491]
[1731511218614,0.1,215.72,215.64,36.79998491]
[1731511218795,36.89998491,215.69,215.6,36.79998491]
[1731511219108,36.89998491,215.69,215.49,49.30188491]
[1731511219109,0.45949085,215.68,215.59,0.4638]
[1731511219495,0.45949085,215.68,215.64,36.79998491]
[1731511219703,0.45949085,215.73,215.66,36.79998491]
[1731511219889,0.45949085,215.73,215.72,36.79998491]
[1731511220096,0.1,215.85,215.72,36.79998491]
[1731511220097,0.45949085,215.81,215.72,36.79998491]
[1731511220301,24.23637485,215.81,215.72,36.79998491]
[1731511220806,24.23637485,215.81,215.62,0.1]
[1731511220807,0.45949085,215.81,215.8,36.79998491]
[1731511221113,36.79998491,215.9,215.8,37.26328491]
[1731511221291,36.79998491,215.88,215.79,0.4634]
[1731511221492,7.21253615,215.85,215.79,1.6219]
[1731511221688,32.1596,216.0,215.79,1.6219]
[1731511221689,0.45949085,215.84,215.79,1.6219]
[1731511221895,36.89998491,215.96,215.82,36.79998491]
[1731511222084,36.89998491,215.96,215.79,3.9389]
[1731511222085,7.21236334,215.91,215.86,36.79998491]
[1731511222291,0.45949085,215.9,215.84,36.79998491]
[1731511222510,7.67323855,215.9,215.84,36.79998491]
[1731511223088,7.67323855,215.9,215.86,36.79998491]
[1731511223284,0.45949085,215.9,215.88,36.79998491]
[1731511223500,0.45949085,215.98,215.88,36.79998491]
[1731511223705,7.21475417,215.93,215.88,36.79998491]
[1731511223899,0.45949085,215.92,215.85,1.6214]
[1731511224108,0.45949085,215.97,215.87,36.79998491]
[1731511224407,7.21307963,215.94,215.85,1.6214]
[1731511224611,0.45949085,215.93,215.86,36.79998491]
[1731511224800,0.45949085,215.93,215.88,36.79998491]
[1731511224996,0.45949085,215.93,215.89,1.621]
[1731511225386,0.12549,215.92,215.89,1.1579]
[1731511225589,0.12549,215.92,215.84,36.79998491]
[1731511225590,0.12549,215.9,215.84,36.79998491]
[1731511225789,0.12549,215.9,215.6,36.79998491]
[1731511225790,0.12549,215.86,215.75,36.79998491]
[1731511226012,0.45949085,215.85,215.79,36.79998491]
[1731511226214,0.12549,215.84,215.77,36.79998491]
[1731511226393,0.45949085,215.83,215.77,36.79998491]
[1731511226715,0.45949085,215.83,215.79,36.79998491]
[1731511227010,23.902374,215.86,215.78,0.4634]
[1731511227219,24.23637485,215.85,215.78,0.4634]
[1731511227416,24.23637485,215.85,215.78,1.6219]
[1731511227890,23.776884,215.84,215.75,36.79998491]
[1731511228091,0.45949085,215.83,215.79,36.79998491]
[1731511228293,4.51889578,215.93,215.81,36.79998491]
[1731511228294,0.45949085,215.88,215.81,36.79998491]
[1731511228497,0.45949085,215.88,215.87,36.79998491]
[1731511228810,0.45949085,215.93,215.87,36.79998491]
[1731511229116,0.45949085,216.0,215.94,1.6207]
[1731511229297,0.45949085,216.0,215.97,36.79998491]
[1731511229492,0.45949085,216.03,215.97,36.79998491]
[1731511229696,0.12549,216.02,215.94,1.6207]
[1731511229892,0.45949085,216.01,215.95,36.79998491]
[1731511230115,0.45949085,216.01,215.94,1.6207]
[1731511230116,0.45949085,216.01,215.99,36.79998491]
[1731511230409,0.45949085,216.03,215.99,36.79998491]
[1731511230606,7.67473194,216.07,216.01,36.79998491]
[1731511230815,0.45949085,216.07,216.05,36.79998491]
[1731511231009,0.45949085,216.15,216.06,1.6198]
[1731511231314,7.22254388,216.14,216.06,38.41978491]
[1731511231615,0.45949085,216.13,216.06,38.41978491]
[1731511232193,0.45949085,216.13,216.06,1.6198]
[1731511232519,0.45949085,216.07,216.02,36.79998491]
[1731511232700,0.45949085,216.07,216.03,36.79998491]
[1731511232931,0.45949085,216.07,216.05,36.79998491]
[1731511233099,0.45949085,216.07,216.06,0.4628]
[1731511233595,0.45949085,216.07,216.01,37.95728491]
[1731511233918,0.12549,216.06,215.97,37.26298491]
[1731511234100,0.12549,216.04,215.97,36.79998491]
[1731511234304,0.12549,216.02,215.95,36.79998491]
[1731511234495,23.902374,216.0,215.86,30.9273]
[1731511234698,23.902374,215.98,215.9,36.79998491]
[1731511234891,0.45949085,215.97,215.92,36.79998491]
[1731511235118,23.902374,216.0,215.92,36.79998491]
[1731511235417,0.45949085,215.99,215.92,36.79998491]
[1731511235713,23.902374,215.96,215.87,36.79998491]
[1731511235912,61.03635976,215.95,215.85,36.79998491]
[1731511236111,61.03635976,215.95,215.76,43.2612]
[1731511236112,0.45949085,215.95,215.93,36.79998491]
[1731511236313,0.45949085,216.02,215.93,36.79998491]
[1731511236491,0.45949085,216.02,215.9,0.1]
[1731511236492,0.45949085,216.02,215.98,36.79998491]
[1731511236697,0.45949085,216.06,215.98,36.79998491]
[1731511236914,0.45949085,216.06,216.0,36.79998491]
[1731511237109,0.45949085,216.06,216.02,36.79998491]
[1731511237616,0.45949085,216.07,215.98,36.79998491]
[1731511238122,37.25947576,216.07,215.98,36.79998491]
[1731511238794,23.776884,216.06,215.98,36.79998491]
[1731511238995,0.45949085,216.05,215.98,36.79998491]
[1731511239695,0.45949085,216.05,216.0,36.79998491]
[1731511239916,0.45949085,216.07,216.0,36.79998491]
[1731511240090,0.45949085,216.07,215.98,0.1]
[1731511240296,0.45949085,216.07,216.06,36.79998491]
[1731511240491,0.451069,216.08,216.06,36.79998491]
[1731511242120,0.451069,216.3,216.16,0.1]
[1731511242324,0.451069,216.3,216.29,36.79998491]
[1731511242807,0.451069,216.3,216.22,4.5645501]
[1731511243001,0.451069,216.3,216.29,36.79998491]
[1731511244914,0.451069,216.3,216.27,36.79998491]
[1731511245217,0.451069,216.3,216.15,36.79998491]
[1731511245218,0.451069,216.3,216.23,36.79998491]
[1731511245517,0.12549,216.29,216.23,36.79998491]
[1731511245814,20.451069,216.3,216.23,36.79998491]
[1731511245995,0.451069,216.3,216.25,36.79998491]
[1731511246324,0.12549,216.28,216.21,36.79998491]
[1731511246492,36.89998491,216.23,216.15,36.79998491]
[1731511246695,20.22549,216.25,216.12,36.79998491]
[1731511246696,36.79998491,216.2,216.12,36.79998491]